fUSD/lending_fUSD_20241223
["ID","MTS","AMOUNT","RATE_DAILY","PERIOD"]
[346410833,1734947492083,-151.0,0.0001998,2]
[346410834,1734947492092,-427.014721,0.0001998,2]
[346410835,1734947492102,-151.0,0.0001998,2]
[346410836,1734947492111,-427.014721,0.0001998,2]
[346410837,1734947492120,-151.0,0.0001998,2]
[346410838,1734947492130,-151.0,0.0001998,2]
[346410839,1734947492140,-298.147095,0.0001998,2]
[346410840,1734947492149,-192.33094,0.0001998,2]
[346410841,1734947492159,-151.0,0.0001998,2]
[346410842,1734947492168,-192.33094,0.0001998,2]
[346410843,1734947492178,-151.0,0.0001998,2]
[346410844,1734947492188,-151.0,0.0001998,2]
[346410845,1734947492198,-151.0,0.0001998,2]
[346410846,1734947492207,-151.0,0.0001998,2]
[346410847,1734947492217,-158.269863,0.0001998,2]
[346410848,1734947492228,-151.0,0.0001998,2]
[346410849,1734947492238,-189.928288,0.0001998,2]
[346410850,1734947492247,-486.092945,0.0001998,2]
[346410851,1734947492257,-189.928288,0.0001998,2]
[346410852,1734947492267,-486.092945,0.0001998,2]
[346410853,1734947492276,-151.0,0.0001998,2]
[346410854,1734947492285,-287.965352,0.0001998,2]
[346410855,1734947492295,-661.961774,0.0001998,2]
[346410856,1734947492306,-661.961774,0.0001998,2]
[346410857,1734947492316,-151.0,0.0001998,2]
[346410858,1734947492325,-151.0,0.0001998,2]
[346410859,1734947492335,-790.511588,0.0001998,2]
[346410860,1734947492344,-790.511588,0.0001998,2]
[346410861,1734947492354,-151.0,0.0001998,2]
[346410862,1734947492364,-151.0,0.0001998,2]
[346410863,1734947492374,-1192.479609,0.0001998,2]
[346410864,1734947492383,-1192.479609,0.0001998,2]
[346410865,1734947492393,-151.0,0.0001998,2]
[346410866,1734947492403,-151.0,0.0001998,2]
[346410867,1734947492412,-151.0,0.0001998,2]
[346410868,1734947492422,-151.0,0.0001998,2]
[346410869,1734947492431,-151.0,0.0001998,2]
[346410870,1734947492441,-204.206733,0.0001998,2]
[346410871,1734947492450,-151.0,0.0001998,2]
[346410872,1734947492460,-5719.000515,0.0001998,2]
[346410873,1734947492470,-151.0,0.0001998,2]
[346410874,1734947492480,-5719.000515,0.0001998,2]
[346410875,1734947492490,-151.0,0.0001998,2]
[346410876,1734947492500,-151.0,0.0001998,2]
[346410877,1734947492510,-2004.424646,0.0001998,2]
[346410878,1734947492520,-2004.424646,0.0001998,2]
[346410879,1734947492530,-151.0,0.0001998,2]
[346410880,1734947492539,-151.0,0.0001998,2]
[346410881,1734947492549,-151.0,0.0001998,2]
[346410882,1734947492558,-28760.7686658,0.00019992,2]
[346410883,1734947493371,-194.90944031,0.00019178,2]
[346410884,1734947493391,-305.09055969,0.00019178,2]
[346410885,1734947493401,-186.50892611,0.00019178,2]
[346410886,1734947494447,-313.49107389,0.00019178,2]
[346410887,1734947494456,-500.0,0.00019178,2]
[346410888,1734947494465,-500.0,0.00019178,2]
[346410889,1734947494475,-412.45528463,0.00019178,2]
[346410890,1734947494486,-1203.74263389,0.00019178,2]
[346410891,1734947494497,-780.02736611,0.00019178,2]
[346410892,1734947494507,-500.0,0.00019452,2]
[346410893,1734947494517,-500.0,0.00019452,2]
[346410894,1734947494526,-384.99,0.00019452,2]
[346410895,1734947494535,-540.82,0.00019452,2]
[346410896,1734947494545,-158.571,0.00019616,2]
[346410897,1734947494554,-447.82406136,0.00019726,2]
[346410937,1734948631664,-573.55,0.0001631,2]
[346410938,1734948631674,-500.0,0.00017836,2]
[346410939,1734948631683,-794.96,0.00018085,2]
[346410940,1734948631694,-200.52,0.000185,2]
[346410941,1734948631703,-203.16,0.000185,2]
[346410942,1734948631712,-201.98,0.000185,2]
[346410943,1734948631721,-200.11,0.000185,2]
[346410944,1734948631731,-200.85,0.000185,2]
[346410945,1734948631740,-573.55,0.00018574,2]
[346410946,1734948631749,-250.0,0.00018585,2]
[346410947,1734948631759,-202.42,0.00018585,2]
[346410948,1734948631769,-201.59,0.00018585,2]
[346410949,1734948631779,-201.88,0.00018585,2]
[346410950,1734948631789,-200.81,0.00018585,2]
[346410951,1734948631803,-201.83,0.00018585,2]
[346410952,1734948631819,-202.22,0.00018585,2]
[346410953,1734948631830,-201.9,0.00018585,2]
[346410954,1734948631842,-202.86,0.00018585,2]
[346410955,1734948631854,-200.11,0.00018585,2]
[346410956,1734948631864,-203.69,0.00018595,2]
[346410957,1734948631876,-1000.0,0.00018685,2]
[346410958,1734948631886,-201.84,0.00018685,2]
[346410959,1734948631898,-201.47,0.00018685,2]
[346410960,1734948631910,-203.01,0.00018768,2]
[346410961,1734948631923,-202.58,0.00018768,2]
[346410962,1734948631934,-203.22,0.00018768,2]
[346410963,1734948631965,-201.31,0.00018768,2]
[346410964,1734948631978,-200.85,0.00018768,2]
[346410965,1734948631989,-202.78,0.00018768,2]
[346410966,1734948631998,-203.58,0.00018768,2]
[346410967,1734948632009,-200.26,0.00018768,2]
[346410968,1734948632019,-680.58055025,0.00018768,2]
[346410969,1734948632032,-199.75944975,0.00018768,2]
[346410970,1734948632042,-166.63818065,0.00018795,2]
[346410971,1734948632052,-212.8443,0.0001898,2]
[346410972,1734948632062,-188.889,0.0001899,2]
[346410973,1734948632072,-613.38883538,0.00019,2]
[346410975,1734948632148,-957.55557787,0.00019,2]
[346410978,1734948632163,-2888.20362628,0.00019,2]
[346411000,1734948638157,-1355.173635,0.00019,2]
[346411001,1734948638169,-3116.24059349,0.00019,2]
[346411002,1734948638190,-1069.43773198,0.00019,2]
[346411003,1734948638203,-147.88965269,0.00019014,2]
[346411006,1734948639492,-152.11034731,0.00019014,2]
[346411007,1734948639502,-166.63818065,0.00019014,2]
[346411008,1734948639511,-500.0,0.00019038,2]
[346411009,1734948639520,-183.67,0.0001907,2]
[346411010,1734948639529,-795.0804,0.00019078,2]
[346411011,1734948639538,-272.03958438,0.00019078,2]
[346411012,1734948639547,-264.476773,0.00019078,2]
[346411013,1734948639556,-1577.58032841,0.00019078,2]
[346411014,1734948639583,-592.53,0.00019078,2]
[346411015,1734948639668,-2144.6,0.00019078,2]
[346411016,1734948639840,-534.7143588,0.00019078,2]
[346411017,1734948639852,-1133.80791836,0.00019078,2]
[346411018,1734948639863,-1151.87,0.00019078,2]
[346411019,1734948639875,-321.609999,0.00019078,2]
[346411027,1734948642542,-4919.45,0.00019078,2]
[346411028,1734948642754,-500.0,0.00019073,2]
[346411029,1734948642763,-12281.31884356,0.00019078,2]
[346411033,1734948645540,-1049.33031168,0.00019078,2]
[346411034,1734948645710,-701.7679036,0.00019078,2]
[346411035,1734948645838,-957.59003,0.00019078,2]
[346411036,1734948645944,-838.4,0.00019078,2]
[346411040,1734948770239,1000.33012909,0.0002,120]
[346411041,1734948891474,252.92,0.00010137,2]
[346411042,1734949031564,287.47,0.00012111,2]
[346411052,1734949808222,155.59,0.00010137,2]
[346411065,1734949831747,-300.0,0.00016119,2]
[346411066,1734949831757,-4135.12560562,0.0001612,2]
[346411067,1734949831768,-739.62715487,0.0001612,2]
[346411068,1734949831779,-342.527592,0.0001612,2]
[346411069,1734949831790,-720.52065708,0.0001612,2]
[346411070,1734949831857,-2816.84400929,0.0001612,2]
[346411071,1734949831869,-1950.0,0.0001612,2]
[346411072,1734949831881,-1575.74554938,0.0001612,2]
[346411073,1734949831892,-585.04,0.0001612,2]
[346411074,1734949831907,-32069.55943176,0.0001612,2]
[346411075,1734949831917,-516.19,0.0001612,2]
[346411076,1734949831926,-252.92,0.00016813,2]
[346411077,1734949831935,-250.0,0.00017746,2]
[346411078,1734949831944,-1000.0,0.00017815,2]
[346411079,1734949831952,-352.13,0.00017841,2]
[346411080,1734949831961,-300.0,0.000179,5]
[346411081,1734949831970,-210.12461968,0.000179,2]
[346411082,1734949831979,-30221.48331999,0.00017916,3]
[346411083,1734949831988,-6570.30051282,0.00017916,2]
[346411084,1734949831997,-330.88,0.00017966,3]
[346411085,1734949832006,-500.0,0.00017973,2]
[346411086,1734949832016,-151.017453,0.00018,2]
[346411087,1734949832025,-218.21780837,0.00018,2]
[346411088,1734949832035,-15050.08193521,0.00018,2]
[346411089,1734949832044,-203.56,0.00018193,2]
[346411090,1734949832054,-203.42,0.00018193,2]
[346411091,1734949832063,-203.82,0.00018193,2]
[346411092,1734949832072,-203.39,0.00018193,2]
[346411093,1734949832082,-201.54,0.00018193,2]
[346411094,1734949832091,-516.19,0.00018384,2]
[346411095,1734949832100,-203.4,0.00018417,2]
[346411096,1734949832109,-200.08,0.00018417,2]
[346411097,1734949832120,-202.98,0.00018417,2]
[346411098,1734949832129,-202.73,0.00018417,2]
[346411099,1734949832138,-200.93,0.00018417,2]
[346411100,1734949832148,-202.58,0.00018417,2]
[346411107,1734949832411,-501.54677738,0.00018521,2]
[346411109,1734949832421,-202.65,0.00018693,2]
[346411111,1734949832431,-3887.0,0.00018701,2]
[346411113,1734949832440,-591.7124,0.0001879,2]
[346411115,1734949832450,-5000.0,0.0001879,2]
[346411117,1734949832459,-952.81554781,0.0001879,2]
[346411118,1734949832468,-365.99544019,0.0001879,2]
[346411119,1734949832479,-163.69378581,0.00018795,2]
[346411120,1734949832488,-17211.0,0.00018849,2]
[346411121,1734949832497,-24083.0,0.00018849,2]
[346411122,1734949832506,-29582.0,0.00018849,2]
[346411123,1734949832515,-519.2101584,0.00018873,2]
[346411124,1734949832525,-500.0,0.00018873,2]
[346411125,1734949832534,-347.78347158,0.00018873,2]
[346411126,1734949832544,-241.91075704,0.00018873,2]
[346411127,1734949832553,-191.29263126,0.0001888,2]
[346411128,1734949832562,-191.29263126,0.0001888,2]
[346411129,1734949832571,-191.29263126,0.0001888,2]
[346411130,1734949832580,-171.87138213,0.0001888,2]
[346411131,1734949832589,-7430.431,0.0001888,2]
[346411132,1734949832599,-344.334,0.0001888,2]
[346411133,1734949832608,-500.0,0.00018889,2]
[346411134,1734949832619,-3183.0,0.00018889,3]
[346411135,1734949832628,-115275.43294039,0.0001889,2]
[346411136,1734949832637,-202.95,0.00018917,2]
[346411137,1734949832646,-203.93,0.00018917,2]
[346411138,1734949832655,-203.72,0.00018917,2]
[346411139,1734949832664,-365.99544019,0.00018929,2]
[346411140,1734949832674,-163.69378581,0.00018932,2]
[346411141,1734949832683,-246.72,0.00018932,2]
[346411142,1734949832692,-168.29,0.00018968,2]
[346411143,1734949832702,-1348.5313,0.00018973,2]
[346411144,1734949832711,-500.0,0.00018973,2]
[346411145,1734949832720,-208.26189319,0.00018979,2]
[346411146,1734949832729,-500.0,0.00018979,2]
[346411147,1734949832738,-507.22097638,0.00018979,2]
[346411148,1734949832747,-5828.3601,0.0001898,2]
[346411149,1734949832756,-9490.5022,0.0001898,2]
[346411150,1734949832765,-38408.3477,0.0001898,2]
[346411151,1734949832774,-5497.1299,0.0001898,2]
[346411152,1734949832784,-42030.48349351,0.0001898,2]
[346411153,1734949832819,-19705.6,0.0001898,2]
[346411154,1734949832830,-1305.49139509,0.0001898,2]
[346411155,1734949832842,-1259.99999995,0.0001898,2]
[346411156,1734949832856,-288801.3542618,0.0001898,2]
[346411157,1734949832879,-5012.01488347,0.0001898,2]
[346411158,1734949832892,-7616.51055821,0.0001898,2]
[346411159,1734949832914,-1666.75681614,0.0001898,2]
[346411160,1734949832955,-982.83161804,0.0001898,2]
[346411161,1734949837662,-19541.0651534,0.00017916,3]
[346411162,1734949837673,-3249.42099764,0.00017916,3]
[346411163,1734949837684,-1641.99411416,0.00017916,3]
[346411164,1734949837695,-319.58273259,0.00017916,3]
[346411165,1734949837746,-5268145.2318279,0.00017916,3]
[346411166,1734949837755,-635.0,0.00018701,2]
[346411167,1734949837764,-500.0,0.00018973,2]
[346411168,1734949837773,-510544.56941195,0.0001898,2]
[346411169,1734949837781,-608383.58110084,0.0001898,2]
[346411170,1734949837795,-34214.0,0.0001898,2]
[346411171,1734949837806,-500.0,0.0001898,2]
[346411172,1734949837824,-9579.81139119,0.0001898,2]
[346411173,1734949837877,-1018.0,0.0001898,2]
[346411174,1734949837888,-573.45,0.0001898,2]
[346411175,1734949837899,-10366.37801371,0.0001898,2]
[346411194,1734949839823,-5545.72513954,0.0001898,2]
[346411195,1734949839835,-1774.36729037,0.0001898,2]
[346411196,1734949839846,-4019.09127962,0.0001898,2]
[346411197,1734949839858,-315.6,0.0001898,2]
[346411198,1734949839907,-1945010.63888492,0.0001898,2]
[346411199,1734949839916,-180.646,0.0001899,2]
[346411200,1734949839926,-72786.52398923,0.00019,2]
[346411201,1734949839936,-10000.0,0.00019,2]
[346411202,1734949839947,-49375.57757328,0.00019,2]
[346411203,1734949839957,-1394.7136949,0.00019,2]
[346411204,1734949839966,-24999.999999,0.00019,2]
[346411205,1734949839975,-59303.64015126,0.00019,2]
[346411206,1734949839985,-11730.31395047,0.0001901,2]
[346411207,1734949839995,-500.0,0.00019026,2]
[346411208,1734949840004,-2500.0,0.00019038,2]
[346411209,1734949840014,-365.99544019,0.00019069,2]
[346411210,1734949840023,-500.0,0.00019073,2]
[346411211,1734949840032,-500.0,0.00019073,2]
[346411212,1734949840042,-502.28280265,0.00019073,2]
[346411213,1734949840051,-28.37044672,0.00019078,2]
[346411214,1734949840061,-1000.0,0.00019078,2]
[346411215,1734949840070,-1000.0,0.00019078,3]
[346411216,1734949840080,-1000.0,0.00019078,4]
[346411217,1734949840089,-1000.0,0.00019078,3]
[346411218,1734949840098,-1000.0,0.00019078,2]
[346411219,1734949840107,-1279.0,0.00019078,2]
[346411220,1734949840117,-1000.0,0.00019078,2]
[346411221,1734949840128,-1000.0,0.00019078,2]
[346411222,1734949840137,-1000.0,0.00019078,2]
[346411223,1734949840147,-241.53480428,0.00019078,2]
[346411224,1734949840156,-3000.0,0.00019078,2]
[346411225,1734949840166,-203.13,0.00019078,2]
[346411226,1734949840176,-163.69378581,0.00019096,2]
[346411227,1734949840185,-1002.1948,0.00019099,2]
[346411228,1734949840195,-1300765.473279,0.000191,2]
[346411229,1734949840204,-152.0,0.00019158,3]
[346411230,1734949840214,-500.0,0.00019163,2]
[346411231,1734949840224,-157.122319,0.00019168,2]
[346411232,1734949840233,-157.122319,0.00019168,2]
[346411233,1734949840243,-157.122319,0.00019168,2]
[346411234,1734949840252,-157.122319,0.00019168,2]
[346411235,1734949840262,-157.122319,0.00019168,3]
[346411236,1734949840272,-157.122319,0.00019168,3]
[346411237,1734949840282,-157.122319,0.00019168,3]
[346411238,1734949840292,-157.122319,0.00019168,3]
[346411239,1734949840301,-500.0,0.00019173,2]
[346411240,1734949840312,-500.0,0.00019173,2]
[346411241,1734949840322,-500.0,0.00019173,2]
[346411242,1734949840332,-150.0,0.00019177,2]
[346411243,1734949840342,-156.751443,0.00019178,2]
[346411244,1734949840351,-156.602172,0.00019178,2]
[346411245,1734949840361,-155.987329,0.00019178,2]
[346411246,1734949840371,-154.643178,0.00019178,2]
[346411247,1734949840385,-157.847433,0.00019178,2]
[346411248,1734949840396,-500.0,0.00019178,2]
[346411249,1734949840406,-500.0,0.00019178,2]
[346411250,1734949840416,-505.97113102,0.00019178,2]
[346411251,1734949840426,-500.0,0.00019178,2]
[346411252,1734949840436,-500.0,0.00019178,2]
[346411253,1734949840445,-502.68711995,0.00019178,2]
[346411254,1734949840454,-513.2653737,0.00019178,2]
[346411255,1734949840464,-501.24141387,0.00019178,2]
[346411256,1734949840474,-224.90320816,0.00019178,2]
[346411257,1734949840483,-501.2550836,0.00019178,2]
[346411258,1734949840493,-500.0,0.00019178,2]
[346411259,1734949840503,-500.0,0.00019178,2]
[346411260,1734949840512,-500.0,0.00019178,2]
[346411261,1734949840522,-500.0,0.00019178,2]
[346411262,1734949840531,-500.0,0.00019178,2]
[346411263,1734949840542,-500.0,0.00019178,2]
[346411264,1734949840551,-500.0,0.00019178,2]
[346411265,1734949840560,-500.0,0.00019178,2]
[346411266,1734949840569,-500.0,0.00019178,2]
[346411267,1734949840579,-500.0,0.00019178,2]
[346411268,1734949840588,-410.54024759,0.00019178,2]
[346411269,1734949840598,-500.0,0.00019178,2]
[346411270,1734949840607,-500.0,0.00019178,2]
[346411271,1734949840617,-500.0,0.00019178,2]
[346411272,1734949840629,-500.0,0.00019178,2]
[346411273,1734949840639,-560.58546259,0.00019178,2]
[346411274,1734949840648,-500.0,0.00019178,2]
[346411275,1734949840657,-500.0,0.00019178,2]
[346411276,1734949840667,-504.36398167,0.00019178,2]
[346411277,1734949840677,-500.0,0.00019178,2]
[346411278,1734949840686,-500.0,0.00019178,2]
[346411279,1734949840695,-500.0,0.00019178,2]
[346411280,1734949840705,-500.0,0.00019178,2]
[346411281,1734949840714,-500.0,0.00019178,2]
[346411282,1734949840723,-500.0,0.00019178,2]
[346411283,1734949840733,-500.0,0.00019178,2]
[346411284,1734949840742,-500.0,0.00019178,2]
[346411285,1734949840752,-500.0,0.00019178,2]
[346411286,1734949840762,-500.0,0.00019178,2]
[346411287,1734949840771,-500.0,0.00019178,2]
[346411288,1734949840780,-500.0,0.00019178,2]
[346411289,1734949840790,-500.0,0.00019178,2]
[346411290,1734949840803,-500.0,0.00019178,2]
[346411291,1734949840812,-500.0,0.00019178,2]
[346411292,1734949840821,-500.0,0.00019178,2]
[346411293,1734949840831,-504.47113373,0.00019178,2]
[346411294,1734949840840,-506.65214376,0.00019178,2]
[346411295,1734949840850,-246.960873,0.00019178,2]
[346411296,1734949840859,-153.118052,0.00019178,2]
[346411297,1734949840869,-506.9265488,0.00019178,2]
[346411298,1734949840881,-500.0,0.00019178,2]
[346411299,1734949840891,-500.0,0.00019178,2]
[346411300,1734949840900,-500.0,0.00019178,2]
[346411301,1734949840909,-500.0,0.00019178,2]
[346411302,1734949840919,-501.42502896,0.00019178,2]
[346411303,1734949840928,-500.0,0.00019178,2]
[346411304,1734949840937,-326.86554207,0.00019178,2]
[346411305,1734949840946,-500.0,0.00019178,2]
[346411306,1734949840955,-500.0,0.00019178,2]
[346411307,1734949840965,-152.561789,0.00019178,2]
[346411308,1734949840974,-156.541348,0.00019178,2]
[346411309,1734949840983,-500.0,0.00019178,2]
[346411310,1734949840993,-500.0,0.00019178,2]
[346411311,1734949841002,-500.0,0.00019178,2]
[346411312,1734949841011,-500.0,0.00019178,2]
[346411313,1734949841020,-500.0,0.00019178,2]
[346411314,1734949841029,-350.4791281,0.00019178,2]
[346411315,1734949841039,-500.0,0.00019178,2]
[346411316,1734949841048,-500.0,0.00019178,2]
[346411317,1734949841057,-500.0,0.00019178,2]
[346411318,1734949841067,-500.0,0.00019178,2]
[346411319,1734949841075,-500.0,0.00019178,2]
[346411320,1734949841084,-1256.89,0.00019178,2]
[346411321,1734949841093,-503.12969783,0.00019178,2]
[346411322,1734949841102,-500.0,0.00019178,2]
[346411323,1734949841111,-500.0,0.00019178,2]
[346411324,1734949841120,-500.41089354,0.00019178,2]
[346411325,1734949841135,-500.0,0.00019178,2]
[346411326,1734949841144,-585.51022829,0.00019178,2]
[346411327,1734949841154,-500.96974726,0.00019178,2]
[346411328,1734949841163,-743.11,0.00019178,2]
[346411329,1734949841172,-500.0,0.00019178,2]
[346411330,1734949841181,-500.0,0.00019178,2]
[346411331,1734949841190,-500.0,0.00019178,2]
[346411332,1734949841199,-542.77651942,0.00019178,2]
[346411333,1734949841208,-500.0,0.00019178,2]
[346411334,1734949841217,-500.0,0.00019178,2]
[346411335,1734949841226,-500.0,0.00019178,2]
[346411336,1734949841235,-500.0,0.00019178,2]
[346411337,1734949841244,-500.0,0.00019178,2]
[346411338,1734949841253,-506.11791809,0.00019178,2]
[346411339,1734949841262,-638.86574418,0.00019178,2]
[346411340,1734949841271,-500.0,0.00019178,2]
[346411341,1734949841280,-1155.32,0.00019178,2]
[346411342,1734949841289,-500.0,0.00019178,2]
[346411343,1734949841298,-500.0,0.00019178,2]
[346411344,1734949841307,-500.0,0.00019178,2]
[346411345,1734949841316,-500.0,0.00019178,2]
[346411346,1734949841325,-500.0,0.00019178,2]
[346411347,1734949841335,-500.0,0.00019178,2]
[346411348,1734949841344,-500.0,0.00019178,2]
[346411349,1734949841353,-500.0,0.00019178,2]
[346411350,1734949841363,-500.0,0.00019178,2]
[346411351,1734949841372,-209.02941771,0.00019178,2]
[346411352,1734949841383,-500.0,0.00019178,2]
[346411353,1734949841393,-500.0,0.00019178,2]
[346411354,1734949841403,-500.0,0.00019178,2]
[346411355,1734949841412,-500.0,0.00019178,2]
[346411356,1734949841421,-500.0,0.00019178,2]
[346411357,1734949841430,-500.0,0.00019178,2]
[346411358,1734949841439,-536.47,0.00019178,2]
[346411359,1734949841448,-500.0,0.00019178,2]
[346411360,1734949841457,-500.0,0.00019178,2]
[346411361,1734949841466,-500.0,0.00019178,2]
[346411362,1734949841475,-500.0,0.00019178,2]
[346411363,1734949841485,-500.0,0.00019178,2]
[346411364,1734949841494,-500.0,0.00019178,2]
[346411365,1734949841503,-500.0,0.00019178,2]
[346411366,1734949841512,-500.0,0.00019178,2]
[346411367,1734949841522,-500.0,0.00019178,2]
[346411368,1734949841531,-267.78561491,0.00019178,2]
[346411369,1734949841541,-500.0,0.00019178,2]
[346411370,1734949841550,-500.0,0.00019178,2]
[346411371,1734949841559,-500.0,0.00019178,2]
[346411372,1734949841568,-526.08,0.00019178,2]
[346411373,1734949841577,-588.63,0.00019178,2]
[346411374,1734949841586,-500.0,0.00019178,2]
[346411375,1734949841595,-500.0,0.00019178,2]
[346411376,1734949841604,-821.25,0.00019178,2]
[346411377,1734949841613,-500.0,0.00019178,2]
[346411378,1734949841622,-500.0,0.00019178,2]
[346411379,1734949841633,-500.0,0.00019178,2]
[346411380,1734949841643,-500.0,0.00019178,2]
[346411381,1734949841652,-500.0,0.00019178,2]
[346411382,1734949841661,-500.0,0.00019178,2]
[346411383,1734949841670,-500.0,0.00019178,2]
[346411384,1734949841679,-500.0,0.00019178,2]
[346411385,1734949841688,-500.0,0.00019178,2]
[346411386,1734949841697,-500.60454805,0.00019178,2]
[346411387,1734949841707,-500.0,0.00019178,2]
[346411388,1734949841715,-500.0,0.00019178,2]
[346411389,1734949841724,-502.87692057,0.00019178,2]
[346411390,1734949841733,-500.0,0.00019178,2]
[346411391,1734949841742,-500.0,0.00019178,2]
[346411392,1734949841751,-500.0,0.00019178,2]
[346411393,1734949841760,-500.0,0.00019178,2]
[346411394,1734949841769,-500.0,0.00019178,2]
[346411395,1734949841778,-500.0,0.00019178,2]
[346411396,1734949841787,-500.0,0.00019178,2]
[346411397,1734949841800,-521.42669841,0.00019178,2]
[346411398,1734949841809,-500.0,0.00019178,2]
[346411399,1734949841818,-500.0,0.00019178,2]
[346411400,1734949841827,-500.0,0.00019178,2]
[346411401,1734949841837,-848.06,0.00019178,2]
[346411402,1734949841846,-500.0,0.00019178,2]
[346411403,1734949841855,-500.0,0.00019178,2]
[346411404,1734949841864,-500.0,0.00019178,2]
[346411405,1734949841875,-500.0,0.00019178,2]
[346411406,1734949841886,-500.0,0.00019178,2]
[346411407,1734949841895,-500.0,0.00019178,2]
[346411408,1734949841904,-500.0,0.00019178,2]
[346411409,1734949841912,-500.0,0.00019178,2]
[346411410,1734949841922,-500.0,0.00019178,2]
[346411411,1734949841931,-500.0,0.00019178,2]
[346411412,1734949841940,-500.0,0.00019178,2]
[346411413,1734949841949,-500.0,0.00019178,2]
[346411414,1734949841958,-500.0,0.00019178,2]
[346411415,1734949841967,-500.0,0.00019178,2]
[346411416,1734949841976,-500.0,0.00019178,2]
[346411417,1734949841986,-500.0,0.00019178,2]
[346411418,1734949841995,-674.96,0.00019178,2]
[346411419,1734949842004,-500.0,0.00019178,2]
[346411420,1734949842013,-500.0,0.00019178,2]
[346411421,1734949842023,-500.0,0.00019178,2]
[346411422,1734949842033,-500.60198809,0.00019178,2]
[346411423,1734949842042,-500.0,0.00019178,2]
[346411424,1734949842052,-500.0,0.00019178,2]
[346411425,1734949842061,-502.08906168,0.00019178,2]
[346411426,1734949842069,-500.0,0.00019178,2]
[346411427,1734949842078,-500.0,0.00019178,2]
[346411428,1734949842087,-500.0,0.00019178,2]
[346411429,1734949842096,-287.65878902,0.00019178,2]
[346411430,1734949842105,-500.0,0.00019178,2]
[346411431,1734949842114,-500.0,0.00019178,2]
[346411432,1734949842123,-500.0,0.00019178,2]
[346411433,1734949842138,-500.0,0.00019178,2]
[346411434,1734949842147,-500.0,0.00019178,2]
[346411435,1734949842156,-500.0,0.00019178,2]
[346411436,1734949842165,-500.0,0.00019178,2]
[346411437,1734949842174,-500.0,0.00019178,2]
[346411438,1734949842183,-504.0470621,0.00019178,2]
[346411439,1734949842432,-500.0,0.00019178,2]
[346411442,1734949842442,-500.0,0.00019178,2]
[346411444,1734949842451,-728.4,0.00019178,2]
[346411446,1734949842460,-500.0,0.00019178,2]
[346411448,1734949842469,-500.0,0.00019178,2]
[346411449,1734949842478,-500.0,0.00019178,2]
[346411450,1734949842487,-500.0,0.00019178,2]
[346411451,1734949842497,-500.0,0.00019178,2]
[346411452,1734949842506,-500.0,0.00019178,2]
[346411453,1734949842515,-500.0,0.00019178,2]
[346411455,1734949842524,-500.0,0.00019178,2]
[346411456,1734949842533,-500.0,0.00019178,2]
[346411457,1734949842543,-500.0,0.00019178,2]
[346411458,1734949842552,-500.0,0.00019178,2]
[346411459,1734949842562,-500.0,0.00019178,2]
[346411460,1734949842571,-500.0,0.00019178,2]
[346411461,1734949842580,-300.0,0.00019178,2]
[346411462,1734949842590,-531.77286227,0.00019178,2]
[346411463,1734949842599,-662.9,0.00019178,2]
[346411464,1734949842608,-500.0,0.00019178,2]
[346411465,1734949842617,-500.0,0.00019178,2]
[346411466,1734949842627,-500.0,0.00019178,2]